fUSD/lending_fUSD_20250207
["ID","MTS","AMOUNT","RATE_DAILY","PERIOD"]
[352027172,1738887068930,-500.0,0.00017397,2]
[352027173,1738887068939,-500.0,0.00017397,2]
[352027174,1738887068949,-344.81,0.00017397,2]
[352027175,1738887068958,-500.0,0.00017397,2]
[352027176,1738887068969,-500.0,0.00017397,2]
[352027177,1738887068982,-239.36832,0.00017397,2]
[352027178,1738887068991,-497.58795442,0.00017397,2]
[352027179,1738887069000,-500.0,0.00017397,2]
[352027180,1738887069009,-449.72,0.00017397,2]
[352027181,1738887069018,-500.0,0.00017397,2]
[352027182,1738887069029,-500.0,0.00017397,2]
[352027183,1738887069039,-500.0,0.00017397,2]
[352027184,1738887069049,-500.0,0.00017397,2]
[352027185,1738887069059,-500.0,0.00017397,2]
[352027186,1738887069069,-500.0,0.00017397,2]
[352027187,1738887069078,-500.0,0.00017397,2]
[352027188,1738887069087,-551.14,0.00017397,2]
[352027189,1738887069096,-500.0,0.00017397,2]
[352027190,1738887069105,-500.0,0.00017397,2]
[352027191,1738887069114,-500.0,0.00017397,2]
[352027192,1738887069123,-500.0,0.00017397,2]
[352027193,1738887069133,-500.0,0.00017397,2]
[352027194,1738887069142,-174.18276585,0.00017397,2]
[352027195,1738887069152,-403.77,0.00017397,2]
[352027196,1738887069162,-185.62,0.00017397,2]
[352027197,1738887069171,-500.0,0.00017397,2]
[352027198,1738887069180,-500.0,0.00017397,2]
[352027199,1738887069191,-194.67,0.00017397,2]
[352027200,1738887069200,-500.0,0.00017397,2]
[352027201,1738887069209,-500.0,0.00017397,2]
[352027202,1738887069219,-500.0,0.00017397,2]
[352027203,1738887069228,-500.0,0.00017397,2]
[352027204,1738887069238,-500.0,0.00017397,2]
[352027205,1738887069247,-500.0,0.00017397,2]
[352027206,1738887069256,-500.0,0.00017397,2]
[352027207,1738887069266,-500.0,0.00017397,2]
[352027208,1738887069276,-500.0,0.00017397,2]
[352027209,1738887069287,-500.0,0.00017397,2]
[352027210,1738887069297,-500.0,0.00017397,2]
[352027211,1738887069307,-599.22,0.00017397,2]
[352027212,1738887069317,-500.0,0.00017397,2]
[352027213,1738887069327,-500.0,0.00017397,2]
[352027214,1738887069337,-547.32,0.00017397,2]
[352027215,1738887069347,-500.0,0.00017397,2]
[352027216,1738887069357,-500.0,0.00017397,2]
[352027217,1738887069367,-704.99,0.00017397,2]
[352027218,1738887069377,-500.0,0.00017397,2]
[352027219,1738887069386,-500.0,0.00017397,2]
[352027220,1738887069396,-500.0,0.00017397,2]
[352027221,1738887069406,-538.11,0.00017397,2]
[352027222,1738887069415,-749.24,0.00017397,2]
[352027223,1738887069425,-500.0,0.00017397,2]
[352027224,1738887069435,-500.0,0.00017397,2]
[352027225,1738887069445,-500.0,0.00017397,2]
[352027226,1738887069454,-500.0,0.00017397,2]
[352027227,1738887069464,-500.0,0.00017397,2]
[352027228,1738887069475,-568.75,0.00017397,2]
[352027229,1738887069483,-500.0,0.00017397,2]
[352027230,1738887069492,-500.0,0.00017397,2]
[352027231,1738887069501,-500.0,0.00017397,2]
[352027232,1738887069511,-500.0,0.00017397,2]
[352027233,1738887069519,-846.43,0.00017397,2]
[352027234,1738887069528,-500.0,0.00017397,2]
[352027235,1738887069539,-875.88,0.00017397,2]
[352027236,1738887069548,-554.71,0.00017397,2]
[352027237,1738887069557,-2472.36,0.00017397,2]
[352027238,1738887069567,-740.46,0.00017397,2]
[352027239,1738887069575,-699.17,0.00017397,2]
[352027240,1738887069585,-500.0,0.00017397,2]
[352027241,1738887069594,-151.0,0.00017397,2]
[352027242,1738887069603,-673.75,0.00017397,2]
[352027243,1738887069612,-500.23,0.00017397,2]
[352027244,1738887069622,-572.48,0.00017397,2]
[352027245,1738887069632,-680.74,0.00017397,2]
[352027246,1738887069641,-854.5,0.00017397,2]
[352027247,1738887069651,-500.0,0.00017397,2]
[352027248,1738887069661,-659.8,0.00017397,2]
[352027249,1738887069671,-1266.77,0.00017397,2]
[352027250,1738887069680,-888.98,0.00017397,2]
[352027251,1738887069690,-628.17,0.00017397,2]
[352027252,1738887069699,-2607.66,0.00017397,2]
[352027253,1738887069709,-563.12,0.00017397,2]
[352027254,1738887069718,-774.98,0.00017397,2]
[352027255,1738887069727,-500.0,0.00017397,2]
[352027256,1738887069736,-500.0,0.00017397,2]
[352027257,1738887069744,-500.0,0.00017397,2]
[352027258,1738887069754,-854.75,0.00017397,2]
[352027259,1738887069764,-572.06,0.00017397,2]
[352027260,1738887069774,-500.0,0.00017397,2]
[352027261,1738887069783,-500.0,0.00017397,2]
[352027262,1738887069794,-500.0,0.00017397,2]
[352027263,1738887069803,-180.68,0.00017397,2]
[352027264,1738887069812,-761.68,0.00017397,2]
[352027265,1738887069822,-1006.06,0.00017397,2]
[352027266,1738887069831,-500.0,0.00017397,2]
[352027267,1738887069841,-767.84,0.00017397,2]
[352027268,1738887069851,-1113.92,0.00017397,2]
[352027269,1738887069861,-258.902487,0.00017397,2]
[352027270,1738887069870,-859.98,0.00017397,2]
[352027271,1738887069880,-648.05,0.00017397,2]
[352027272,1738887069889,-790.48,0.00017397,2]
[352027273,1738887069897,-508.70160522,0.00017397,2]
[352027274,1738887069906,-500.0,0.00017397,2]
[352027275,1738887069913,-500.0,0.00017397,2]
[352027276,1738887069919,-1534.72,0.00017397,2]
[352027277,1738887069926,-1014.32,0.00017397,2]
[352027278,1738887069934,-954.05,0.00017397,2]
[352027279,1738887069941,-831.75,0.00017397,2]
[352027280,1738887069950,-500.0,0.00017397,2]
[352027281,1738887069960,-500.0,0.00017397,2]
[352027282,1738887069970,-721.07,0.00017397,2]
[352027283,1738887069980,-932.77,0.00017397,2]
[352027284,1738887069992,-1177.66,0.00017397,2]
[352027285,1738887070002,-458.14862278,0.00017397,2]
[352027286,1738887070011,-500.0,0.00017397,2]
[352027287,1738887070021,-809.96,0.00017397,2]
[352027288,1738887070032,-937.04,0.00017397,2]
[352027289,1738887070043,-819.27,0.00017397,2]
[352027290,1738887070054,-500.0,0.00017397,2]
[352027291,1738887070065,-500.0,0.00017397,2]
[352027292,1738887070075,-1021.65,0.00017397,2]
[352027293,1738887070084,-533.9,0.00017397,2]
[352027294,1738887070094,-921.55,0.00017397,2]
[352027295,1738887070104,-1572.61,0.00017397,2]
[352027296,1738887070113,-757.66,0.00017397,2]
[352027297,1738887070123,-508.02,0.00017397,2]
[352027298,1738887070133,-845.1,0.00017397,2]
[352027299,1738887070143,-1046.11,0.00017397,2]
[352027300,1738887070153,-1427.31,0.00017397,2]
[352027301,1738887070163,-794.65,0.00017397,2]
[352027302,1738887070173,-500.0,0.00017397,2]
[352027303,1738887070183,-2730.71,0.00017397,2]
[352027304,1738887070192,-806.13,0.00017397,2]
[352027305,1738887070201,-1195.72,0.00017397,2]
[352027306,1738887070211,-845.52,0.00017397,2]
[352027307,1738887070221,-1708.35,0.00017397,2]
[352027308,1738887070231,-500.0,0.00017397,2]
[352027309,1738887070240,-1313.56,0.00017397,2]
[352027310,1738887070251,-1698.53,0.00017397,2]
[352027311,1738887070260,-905.6,0.00017397,2]
[352027312,1738887070270,-760.42,0.00017397,2]
[352027313,1738887070279,-1365.46,0.00017397,2]
[352027314,1738887070289,-1047.01,0.00017397,2]
[352027315,1738887070299,-745.99,0.00017397,2]
[352027316,1738887070309,-1348.29,0.00017397,2]
[352027317,1738887070319,-500.0,0.00017397,2]
[352027318,1738887070329,-500.0,0.00017397,2]
[352027319,1738887070339,-500.0,0.00017397,2]
[352027320,1738887070349,-1127.34,0.00017397,2]
[352027321,1738887070359,-1455.42,0.00017397,2]
[352027322,1738887070369,-1300.25,0.00017397,2]
[352027323,1738887070379,-814.3,0.00017397,2]
[352027324,1738887070388,-500.0,0.00017397,2]
[352027325,1738887070399,-517.97,0.00017397,2]
[352027326,1738887070409,-500.0,0.00017397,2]
[352027327,1738887070419,-500.0,0.00017397,2]
[352027328,1738887070430,-2883.63,0.00017397,2]
[352027329,1738887070440,-500.0,0.00017397,2]
[352027330,1738887070450,-647.54,0.00017397,2]
[352027331,1738887070460,-1252.07,0.00017397,2]
[352027332,1738887070470,-1086.03,0.00017397,2]
[352027333,1738887070481,-500.0,0.00017397,2]
[352027334,1738887070492,-1143.54,0.00017397,2]
[352027335,1738887070503,-1045.05,0.00017397,2]
[352027336,1738887070513,-1780.26,0.00017397,2]
[352027337,1738887070524,-500.0,0.00017397,2]
[352027338,1738887070534,-1089.69,0.00017397,2]
[352027339,1738887070548,-500.0,0.00017397,2]
[352027340,1738887070559,-1130.82,0.00017397,2]
[352027341,1738887070570,-867.97,0.00017397,2]
[352027342,1738887070580,-1278.31,0.00017397,2]
[352027343,1738887070590,-801.06,0.00017397,2]
[352027344,1738887070600,-500.0,0.00017397,2]
[352027345,1738887070610,-500.0,0.00017397,2]
[352027346,1738887070620,-1021.32,0.00017397,2]
[352027347,1738887070629,-652.88,0.00017397,2]
[352027348,1738887070638,-721.13,0.00017397,2]
[352027349,1738887070648,-558.13,0.00017397,2]
[352027350,1738887070657,-457.83,0.00017397,2]
[352027351,1738887070666,-500.0,0.00017397,2]
[352027352,1738887070676,-500.0,0.00017397,2]
[352027353,1738887070685,-2386.13,0.00017397,2]
[352027354,1738887070695,-500.0,0.00017397,2]
[352027355,1738887070704,-634.77,0.00017397,2]
[352027356,1738887070712,-781.32,0.00017397,2]
[352027357,1738887070721,-314.36,0.00017397,2]
[352027358,1738887070731,-500.0,0.00017397,2]
[352027359,1738887070740,-643.51,0.00017397,2]
[352027360,1738887070750,-500.0,0.00017397,2]
[352027361,1738887070760,-803.41,0.00017397,2]
[352027362,1738887070770,-500.0,0.00017397,2]
[352027363,1738887070779,-500.0,0.00017397,2]
[352027364,1738887070789,-896.94,0.00017397,2]
[352027365,1738887070804,-500.0,0.00017397,2]
[352027366,1738887070814,-1571.73,0.00017397,2]
[352027367,1738887070824,-500.0,0.00017397,2]
[352027368,1738887070834,-832.99,0.00017397,2]
[352027369,1738887070844,-1549.74,0.00017397,2]
[352027370,1738887070854,-2325.0,0.00017399,2]
[352027371,1738887070864,-27286.86742457,0.00017411,2]
[352027372,1738887070874,-2023.0,0.00017436,2]
[352027373,1738887070883,-1272.0,0.00017436,2]
[352027374,1738887070893,-568.29,0.00017436,2]
[352027375,1738887070903,-150.0,0.00017436,2]
[352027376,1738887070913,-638.0,0.00017436,2]
[352027377,1738887070923,-1826.0,0.00017436,2]
[352027378,1738887070933,-1264.0,0.00017436,2]
[352027379,1738887070942,-907.0,0.00017436,2]
[352027380,1738887070951,-783.0,0.00017436,2]
[352027381,1738887070960,-2953.0,0.00017436,2]
[352027382,1738887070969,-4023.0,0.00017436,2]
[352027383,1738887070980,-539.0,0.00017436,2]
[352027384,1738887070991,-150.0,0.00017436,2]
[352027385,1738887071000,-3911.0,0.00017436,2]
[352027386,1738887071130,-1108.0,0.00017436,2]
[352027387,1738887071142,-165.92,0.00017457,2]
[352027388,1738887071152,-56724.65173867,0.00017473,2]
[352027389,1738887071162,-803.37,0.00017532,2]
[352027390,1738887071171,-166.769304,0.00017534,2]
[352027391,1738887071181,-193.92,0.00017534,2]
[352027392,1738887071190,-500.0,0.00017534,2]
[352027393,1738887071200,-553.75,0.00017534,2]
[352027394,1738887071209,-332.54,0.00017534,2]
[352027395,1738887071219,-500.0,0.00017534,2]
[352027396,1738887071228,-539.2,0.00017534,2]
[352027397,1738887071237,-500.0,0.00017534,2]
[352027398,1738887071246,-500.0,0.00017534,2]
[352027399,1738887071256,-500.0,0.00017534,2]
[352027400,1738887071266,-500.0,0.00017534,2]
[352027401,1738887071275,-500.0,0.00017534,2]
[352027402,1738887071284,-188.553296,0.00017534,2]
[352027403,1738887071297,-500.0,0.00017534,2]
[352027404,1738887071307,-500.0,0.00017534,2]
[352027405,1738887071316,-500.0,0.00017534,2]
[352027406,1738887071327,-500.0,0.00017534,2]
[352027407,1738887071337,-500.0,0.00017534,2]
[352027408,1738887071347,-500.0,0.00017534,2]
[352027409,1738887071357,-505.80786818,0.00017534,2]
[352027410,1738887071367,-239.36832,0.00017534,2]
[352027411,1738887071377,-500.0,0.00017534,2]
[352027412,1738887071386,-500.0,0.00017534,2]
[352027413,1738887071395,-500.0,0.00017534,2]
[352027414,1738887071404,-500.0,0.00017534,2]
[352027415,1738887071414,-500.0,0.00017534,2]
[352027416,1738887071424,-576.6891855,0.00017534,2]
[352027417,1738887071433,-477.71,0.00017534,2]
[352027418,1738887071443,-500.0,0.00017534,2]
[352027419,1738887071452,-551.14,0.00017534,2]
[352027420,1738887071461,-500.0,0.00017534,2]
[352027421,1738887071471,-500.0,0.00017534,2]
[352027422,1738887071480,-513.36,0.00017534,2]
[352027423,1738887071491,-500.0,0.00017534,2]
[352027424,1738887071500,-500.0,0.00017534,2]
[352027425,1738887071509,-403.77,0.00017534,2]
[352027426,1738887071519,-500.0,0.00017534,2]
[352027427,1738887071527,-500.0,0.00017534,2]
[352027428,1738887071536,-500.0,0.00017534,2]
[352027429,1738887071547,-500.0,0.00017534,2]
[352027430,1738887071558,-500.0,0.00017534,2]
[352027431,1738887071567,-500.0,0.00017534,2]
[352027432,1738887071578,-500.0,0.00017534,2]
[352027433,1738887071589,-500.0,0.00017534,2]
[352027434,1738887071599,-500.0,0.00017534,2]
[352027435,1738887071609,-152.99,0.00017534,2]
[352027436,1738887071618,-500.0,0.00017534,2]
[352027437,1738887071627,-500.0,0.00017534,2]
[352027438,1738887071637,-500.0,0.00017534,2]
[352027439,1738887071647,-599.22,0.00017534,2]
[352027440,1738887071657,-500.0,0.00017534,2]
[352027441,1738887071667,-500.0,0.00017534,2]
[352027442,1738887071677,-547.32,0.00017534,2]
[352027443,1738887071686,-290.74,0.00017534,2]
[352027444,1738887071695,-500.0,0.00017534,2]
[352027445,1738887071705,-704.99,0.00017534,2]
[352027446,1738887071716,-500.0,0.00017534,2]
[352027447,1738887071726,-500.0,0.00017534,2]
[352027448,1738887071736,-500.0,0.00017534,2]
[352027449,1738887071746,-538.11,0.00017534,2]
[352027450,1738887071756,-749.24,0.00017534,2]
[352027451,1738887071765,-500.0,0.00017534,2]
[352027452,1738887071775,-500.0,0.00017534,2]
[352027453,1738887071785,-500.0,0.00017534,2]
[352027454,1738887071796,-500.0,0.00017534,2]
[352027455,1738887071806,-500.0,0.00017534,2]
[352027456,1738887071816,-568.75,0.00017534,2]
[352027457,1738887071825,-500.0,0.00017534,2]
[352027458,1738887071834,-500.0,0.00017534,2]
[352027459,1738887071844,-500.0,0.00017534,2]
[352027460,1738887071853,-528.19,0.00017534,2]
[352027461,1738887071863,-846.43,0.00017534,2]
[352027462,1738887071872,-500.0,0.00017534,2]
[352027463,1738887071882,-875.88,0.00017534,2]
[352027464,1738887071892,-554.71,0.00017534,2]
[352027465,1738887071902,-2472.36,0.00017534,2]
[352027466,1738887071911,-740.46,0.00017534,2]
[352027467,1738887071919,-699.17,0.00017534,2]
[352027468,1738887071929,-301.06,0.00017534,2]
[352027469,1738887071939,-673.75,0.00017534,2]
[352027470,1738887071949,-500.23,0.00017534,2]
[352027471,1738887071958,-572.48,0.00017534,2]
[352027472,1738887071968,-680.74,0.00017534,2]
[352027473,1738887071978,-854.5,0.00017534,2]
[352027474,1738887071990,-500.0,0.00017534,2]
[352027475,1738887071999,-659.8,0.00017534,2]
[352027476,1738887072010,-1266.77,0.00017534,2]
[352027477,1738887072021,-888.98,0.00017534,2]
[352027478,1738887072031,-628.17,0.00017534,2]
[352027479,1738887072043,-2607.66,0.00017534,2]
[352027480,1738887072055,-563.12,0.00017534,2]
[352027481,1738887072066,-774.98,0.00017534,2]
[352027482,1738887072076,-500.0,0.00017534,2]
[352027483,1738887072086,-500.0,0.00017534,2]
[352027484,1738887072095,-500.0,0.00017534,2]
[352027485,1738887072107,-854.75,0.00017534,2]
[352027486,1738887072118,-572.06,0.00017534,2]
[352027487,1738887072129,-500.0,0.00017534,2]
[352027488,1738887072139,-500.0,0.00017534,2]
[352027489,1738887072148,-500.0,0.00017534,2]
[352027490,1738887072159,-761.68,0.00017534,2]
[352027491,1738887072169,-1006.06,0.00017534,2]
[352027492,1738887072178,-500.0,0.00017534,2]
[352027493,1738887072188,-767.84,0.00017534,2]
[352027494,1738887072198,-1113.92,0.00017534,2]
[352027495,1738887072208,-859.98,0.00017534,2]
[352027496,1738887072218,-648.05,0.00017534,2]
[352027497,1738887072227,-790.48,0.00017534,2]
[352027498,1738887072236,-500.0,0.00017534,2]
[352027499,1738887072246,-491.28538551,0.00017534,2]
[352027500,1738887072256,-1534.72,0.00017534,2]
[352027501,1738887072265,-1014.32,0.00017534,2]
[352027502,1738887072276,-954.05,0.00017534,2]
[352027503,1738887072286,-831.75,0.00017534,2]
[352027504,1738887072297,-500.0,0.00017534,2]
[352027505,1738887072307,-500.0,0.00017534,2]
[352027506,1738887072317,-721.07,0.00017534,2]
[352027507,1738887072326,-932.77,0.00017534,2]
[352027508,1738887072335,-1177.66,0.00017534,2]
[352027509,1738887072344,-500.0,0.00017534,2]
[352027510,1738887072353,-809.96,0.00017534,2]
[352027511,1738887072363,-937.04,0.00017534,2]
[352027512,1738887072372,-819.27,0.00017534,2]
[352027513,1738887072382,-500.0,0.00017534,2]
[352027514,1738887072391,-500.0,0.00017534,2]
[352027515,1738887072400,-1021.65,0.00017534,2]
[352027516,1738887072409,-533.9,0.00017534,2]
[352027517,1738887072418,-921.55,0.00017534,2]
[352027518,1738887072428,-1572.61,0.00017534,2]
[352027519,1738887072438,-757.66,0.00017534,2]
[352027520,1738887072447,-508.02,0.00017534,2]
[352027521,1738887072456,-845.1,0.00017534,2]
[352027522,1738887072465,-1046.11,0.00017534,2]
[352027523,1738887072474,-1427.31,0.00017534,2]
[352027524,1738887072483,-794.65,0.00017534,2]
[352027525,1738887072493,-177.52,0.00017534,2]
[352027526,1738887072502,-2730.71,0.00017534,2]
[352027527,1738887072512,-806.13,0.00017534,2]
[352027528,1738887072522,-1195.72,0.00017534,2]
[352027529,1738887072531,-845.52,0.00017534,2]
[352027530,1738887072541,-1708.35,0.00017534,2]
[352027531,1738887072551,-500.0,0.00017534,2]
[352027532,1738887072560,-1313.56,0.00017534,2]
[352027533,1738887072569,-1698.53,0.00017534,2]
[352027534,1738887072578,-905.6,0.00017534,2]
[352027535,1738887072587,-760.42,0.00017534,2]
[352027536,1738887072596,-1365.46,0.00017534,2]
[352027537,1738887072606,-1047.01,0.00017534,2]
[352027538,1738887072616,-745.99,0.00017534,2]
[352027539,1738887072635,-1348.29,0.00017534,2]
[352027540,1738887072644,-242.5470307,0.00017534,2]
[352027541,1738887072652,-500.0,0.00017534,2]
[352027542,1738887072661,-500.0,0.00017534,2]
[352027543,1738887072670,-1127.34,0.00017534,2]
[352027544,1738887072680,-1300.25,0.00017534,2]
[352027545,1738887072690,-1455.42,0.00017534,2]
[352027546,1738887072700,-814.3,0.00017534,2]
[352027547,1738887072709,-500.0,0.00017534,2]
[352027548,1738887072719,-517.97,0.00017534,2]
[352027549,1738887072729,-500.0,0.00017534,2]
[352027550,1738887072739,-500.0,0.00017534,2]
[352027551,1738887072749,-2883.63,0.00017534,2]
[352027552,1738887072759,-500.0,0.00017534,2]
[352027553,1738887072769,-647.54,0.00017534,2]
[352027554,1738887072779,-1252.07,0.00017534,2]
[352027555,1738887072789,-1086.03,0.00017534,2]
[352027556,1738887072805,-500.0,0.00017534,2]
[352027557,1738887072814,-1143.54,0.00017534,2]
[352027558,1738887072824,-1045.05,0.00017534,2]
[352027559,1738887072835,-500.0,0.00017534,2]
[352027560,1738887072845,-1780.26,0.00017534,2]
[352027561,1738887072855,-1089.69,0.00017534,2]
[352027562,1738887072867,-500.0,0.00017534,2]
[352027563,1738887072877,-1130.82,0.00017534,2]
[352027564,1738887072887,-867.97,0.00017534,2]
[352027565,1738887072899,-1278.31,0.00017534,2]
[352027566,1738887072910,-801.06,0.00017534,2]
[352027567,1738887072921,-500.0,0.00017534,2]
[352027568,1738887072931,-500.0,0.00017534,2]
[352027569,1738887072941,-1021.32,0.00017534,2]
[352027570,1738887072951,-652.88,0.00017534,2]
[352027571,1738887072961,-721.13,0.00017534,2]
[352027572,1738887072971,-558.13,0.00017534,2]
[352027573,1738887072988,-500.0,0.00017534,2]
[352027574,1738887072999,-500.0,0.00017534,2]
[352027575,1738887073009,-2386.13,0.00017534,2]
[352027576,1738887073019,-500.0,0.00017534,2]
[352027577,1738887073029,-634.77,0.00017534,2]
[352027578,1738887073038,-781.32,0.00017534,2]
[352027579,1738887073053,-500.0,0.00017534,2]
[352027580,1738887073063,-643.51,0.00017534,2]
[352027581,1738887073072,-500.0,0.00017534,2]
[352027582,1738887073082,-803.41,0.00017534,2]
[352027583,1738887073092,-158.31,0.00017534,2]
[352027584,1738887073101,-500.0,0.00017534,2]
[352027585,1738887073111,-896.94,0.00017534,2]
[352027586,1738887073120,-500.0,0.00017534,2]
[352027587,1738887073130,-1571.73,0.00017534,2]
[352027588,1738887073140,-500.0,0.00017534,2]
[352027589,1738887073149,-832.99,0.00017534,2]
[352027590,1738887073159,-154.24,0.00017599,2]
[352027591,1738887073168,-2007.8,0.000176,2]
[352027592,1738887073297,-679.68663879,0.00017603,2]
[352027593,1738887073307,-16799.58119345,0.00017626,2]
[352027594,1738887073317,-1039.79389886,0.0001764,2]
[352027595,1738887073329,-1080.30199078,0.0001764,2]
[352027596,1738887073343,-1126.67813901,0.0001764,2]
[352027597,1738887073358,-2167.4617082,0.0001764,2]
[352027598,1738887073367,-803.37,0.00017669,2]
[352027599,1738887073376,-150.034691,0.00017671,2]
[352027600,1738887073386,-460.22933341,0.00017671,2]
[352027601,1738887073395,-553.75,0.00017671,2]
[352027602,1738887073404,-430.88133248,0.00017671,2]
[352027603,1738887073414,-265.25,0.00017671,2]
[352027604,1738887073423,-492.44,0.00017671,2]
[352027605,1738887073432,-500.0,0.00017671,2]
[352027606,1738887073442,-500.0,0.00017671,2]
[352027607,1738887073451,-188.553296,0.00017671,2]
[352027608,1738887073460,-253.9,0.00017671,2]
[352027609,1738887073470,-500.0,0.00017671,2]
[352027610,1738887073479,-500.0,0.00017671,2]
[352027611,1738887073488,-572.85426511,0.00017671,2]
[352027612,1738887073499,-500.0,0.00017671,2]
[352027613,1738887073508,-500.0,0.00017671,2]
[352027614,1738887073518,-239.36832,0.00017671,2]
[352027615,1738887073527,-500.0,0.00017671,2]
[352027616,1738887073536,-500.0,0.00017671,2]
[352027617,1738887073549,-500.0,0.00017671,2]
[352027618,1738887073558,-575.34,0.00017671,2]
[352027619,1738887073568,-500.0,0.00017671,2]
[352027620,1738887073578,-500.0,0.00017671,2]
[352027621,1738887073587,-551.14,0.00017671,2]
[352027622,1738887073597,-500.0,0.00017671,2]
[352027623,1738887073607,-405.22976401,0.00017671,2]
[352027624,1738887073617,-500.0,0.00017671,2]
[352027625,1738887073627,-500.0,0.00017671,2]
[352027626,1738887073636,-403.77,0.00017671,2]
[352027627,1738887073645,-500.0,0.00017671,2]
[352027628,1738887073655,-500.0,0.00017671,2]
[352027629,1738887073664,-413.58373313,0.00017671,2]
[352027630,1738887073673,-500.0,0.00017671,2]
[352027631,1738887073682,-500.0,0.00017671,2]
[352027632,1738887073691,-500.0,0.00017671,2]
[352027633,1738887073700,-500.0,0.00017671,2]
[352027634,1738887073709,-500.0,0.00017671,2]
[352027635,1738887073719,-500.0,0.00017671,2]
[352027636,1738887073728,-500.0,0.00017671,2]
[352027637,1738887073737,-500.0,0.00017671,2]
[352027638,1738887073746,-500.0,0.00017671,2]
[352027639,1738887073755,-599.22,0.00017671,2]
[352027640,1738887073763,-500.0,0.00017671,2]
[352027641,1738887073772,-500.0,0.00017671,2]
[352027642,1738887073781,-547.32,0.00017671,2]
[352027643,1738887073791,-500.0,0.00017671,2]
[352027644,1738887073802,-704.99,0.00017671,2]
[352027645,1738887073811,-500.0,0.00017671,2]
[352027646,1738887073820,-500.0,0.00017671,2]
[352027647,1738887073830,-500.0,0.00017671,2]
[352027648,1738887073838,-538.11,0.00017671,2]
[352027649,1738887073848,-749.24,0.00017671,2]
[352027650,1738887073857,-500.0,0.00017671,2]
[352027651,1738887073866,-500.0,0.00017671,2]
[352027652,1738887073875,-500.0,0.00017671,2]
[352027653,1738887073885,-500.0,0.00017671,2]
[352027654,1738887073894,-500.0,0.00017671,2]
[352027655,1738887073903,-568.75,0.00017671,2]
[352027656,1738887073913,-500.0,0.00017671,2]
[352027657,1738887073922,-500.0,0.00017671,2]
[352027658,1738887073931,-500.0,0.00017671,2]
[352027659,1738887073940,-846.43,0.00017671,2]
[352027660,1738887073949,-500.0,0.00017671,2]
[352027661,1738887073958,-875.88,0.00017671,2]
[352027662,1738887073967,-554.71,0.00017671,2]
[352027663,1738887073977,-2472.36,0.00017671,2]
[352027664,1738887073987,-740.46,0.00017671,2]
[352027665,1738887073998,-699.17,0.00017671,2]
[352027666,1738887074007,-151.0,0.00017671,2]
[352027667,1738887074016,-673.75,0.00017671,2]
[352027668,1738887074025,-500.23,0.00017671,2]
[352027669,1738887074035,-572.48,0.00017671,2]
[352027670,1738887074045,-680.74,0.00017671,2]
[352027671,1738887074054,-854.5,0.00017671,2]